[Event "36th Belgrade Trophy 2023"]
[Site "Belgrade"]
[Date "2023.12.02"]
[Round "8.11"]
[White "Scekic, Veljko"]
[Black "Stanojevic, Ilija"]
[Result "1/2-1/2"]
[ECO "B31"]
[WhiteElo "2211"]
[BlackElo "2117"]
[Annotator "ChessBase"]
[PlyCount "125"]
[EventDate "2023.10.23"]
[EventType "swiss"]
[EventCountry "SRB"]
[SourceTitle "playchess.com"]
[Source "ChessBase"]
[SourceQuality "1"]
[TimeControl "40/5400+30:900+30"]

1. e4 {[%emt 1:31:00]} c5 {[%emt 1:31:00]} 2. Nf3 {[%emt 0:00:30]} Nc6 {[%emt 0:00:30]} 3. Bb5 {[%emt 0:00:00]} g6 {[%emt 0:00:30]} 4. O-O {[%emt 0:01:00]} Bg7 {[%emt 0:00:30]} 5. Re1 {[%emt 0:00:30]} e5 {[%emt 0:00:30]} 6. c3 {[%emt 0:00:30]} Nge7 {[%emt 0:00:30]} 7. d3 {[%emt 0:00:30]} a6 {[%emt 0:00:00]} 8. Bc4 b5 {[%emt 0:01:00]} 9. Bb3 {[%emt 0:01:00]} O-O {[%emt 0:00:00]} 10. a4 Rb8 {[%emt 0:01:00]} 11. axb5 {[%emt 0:01:00]} axb5 {[%emt 0:00:00]} 12. Be3 d6 {[%emt 0:00:00]} 13. Nbd2 h6 {[%emt 0:00:00]} 14. h3 Kh7 {[%emt 0:00:00]} 15. Nh2 Qc7 {[%emt 0:02:30]} 16. f4 {[%emt 0:02:30]} Na5 {[%emt 0:00:30]} 17. fxe5 {[%emt 0:00:30]} dxe5 {[%emt 0:00:30]} 18. Bc2 {[%emt 0:00:30]} c4 {[%emt 0:00:30]} 19. Nhf3 {[%emt 0:00:30]} Nec6 {[%emt 0:00:30]} 20. Qe2 {[%emt 0:00:30]} Be6 {[%emt 0:00:30]} 21. Reb1 {[%emt 0:00:30]} Rfd8 {[%emt 0:00:00]} 22. b4 cxb3 {[%emt 0:01:00]} 23. Nxb3 {[%emt 0:01:00]} Nxb3 {[%emt 0:00:30]} 24. Bxb3 {[%emt 0:00:00]} Bxb3 {[%emt 0:00:00]} 25. Rxb3 {[%emt 0:01:00]} Qd7 {[%emt 0:01:00]} 26. Ne1 {[%emt 0:00:30]} b4 {[%emt 0:00:30]} 27. Rc1 {[%emt 0:00:30]} Bf8 {[%emt 0:00:30]} 28. cxb4 {[%emt 0:00:30]} Rxb4 {[%emt 0:00:30]} 29. Rbc3 {[%emt 0:00:30]} Nd4 {[%emt 0:00:00]} 30. Qf2 Ne6 {[%emt 0:00:00]} 31. Nf3 Bg7 {[%emt 0:01:30]} 32. Kh2 {[%emt 0:01:30]} Qb5 {[%emt 0:00:30]} 33. Ne1 {[%emt 0:00:00]} Rd7 {[%emt 0:00:30]} 34. Qf3 {[%emt 0:01:00]} Rb2 {[%emt 0:00:30]} 35. R3c2 {[%emt 0:00:30]} Rxc2 {[%emt 0:00:30]} 36. Rxc2 {[%emt 0:00:30]} Qb3 {[%emt 0:00:30]} 37. Qe2 Bf6 38. Qf2 {[%emt 0:01:00]} Bd8 {[%emt 0:00:00]} 39. Rc8 Qb7 {[%emt 0:01:30]} 40. Rc2 {[%emt 0:01:00]} Qb3 {[%emt 0:00:30]} 41. Rc8 {[%emt 0:15:30]} Qb7 {[%emt 0:01:13]} 42. Rc2 Kg7 {[%emt 0:14:47]} 43. Rd2 {[%emt 0:00:00]} Qb3 {[%emt 0:00:00]} 44. Rc2 {[%emt 0:00:00]} Qb7 45. Ra2 {[%emt 0:02:00]} Bg5 {[%emt 0:00:00]} 46. Bxg5 hxg5 {[%emt 0:02:00]} 47. Qe3 {[%emt 0:01:00]} Nf4 {[%emt 0:00:00]} 48. g3 Qb1 {[%emt 0:00:00]} 49. Rd2 {[%emt 0:00:00]} Ne6 {[%emt 0:01:30]} 50. Rf2 {[%emt 0:01:30]} Rc7 {[%emt 0:00:00]} 51. Rf1 {[%emt 0:00:00]} f6 52. Kg2 {[%emt 0:01:00]} Qb2+ {[%emt 0:00:00]} 53. Rf2 Qc1 {[%emt 0:00:00]} 54. Qf3 Rf7 {[%emt 0:01:04]} 55. Nc2 f5 {[%emt 0:00:06]} 56. exf5 Rxf5 {[%emt 0:02:20]} 57. Qe2 {[%emt 0:02:30]} Kf6 {[%emt 0:00:00]} 58. Ne3 Nd4 {[%emt 0:00:00]} 59. Ng4+ Ke6 {[%emt 0:01:30]} 60. Qe4 {[%emt 0:01:30]} Qc6 {[%emt 0:00:30]} 61. Qxc6+ {[%emt 0:00:00]} Nxc6 {[%emt 0:00:30]} 62. Ne3 {[%emt 0:01:00]} Rxf2+ {[%emt 0:00:30]} 63. Kxf2 {[%emt 0:00:30]} 1/2-1/2

[Event "36th Belgrade Trophy 2023"]
[Site "Belgrade"]
[Date "2023.12.02"]
[Round "8.12"]
[White "Sovetbekova, Nurai"]
[Black "Savic, Mihailo S"]
[Result "0-1"]
[ECO "E32"]
[WhiteElo "1801"]
[BlackElo "2157"]
[Annotator "ChessBase"]
[PlyCount "92"]
[EventDate "2023.10.23"]
[EventType "swiss"]
[EventCountry "SRB"]
[SourceTitle "playchess.com"]
[Source "ChessBase"]
[SourceQuality "1"]
[TimeControl "40/5400+30:900+30"]

1. d4 {[%emt 1:31:00]} e6 {[%emt 1:31:00]} 2. c4 {[%emt 0:00:30]} Nf6 {[%emt 0:00:30]} 3. Nc3 {[%emt 0:00:00]} Bb4 {[%emt 0:00:30]} 4. Qc2 {[%emt 0:01:00]} d6 {[%emt 0:00:30]} 5. a3 {[%emt 0:00:30]} Bxc3+ {[%emt 0:00:00]} 6. Qxc3 {[%emt 0:00:30]} O-O {[%emt 0:01:00]} 7. Bg5 {[%emt 0:00:30]} h6 {[%emt 0:00:30]} 8. Bh4 {[%emt 0:00:30]} Nbd7 {[%emt 0:00:30]} 9. Nf3 {[%emt 0:00:30]} Re8 {[%emt 0:00:30]} 10. Rd1 {[%emt 0:00:30]} b6 {[%emt 0:00:30]} 11. e3 {[%emt 0:00:00]} Bb7 {[%emt 0:00:30]} 12. Be2 {[%emt 0:01:00]} Qe7 {[%emt 0:00:30]} 13. O-O {[%emt 0:00:30]} Qf8 {[%emt 0:00:30]} 14. b4 {[%emt 0:00:00]} Ne4 {[%emt 0:00:30]} 15. Qc2 {[%emt 0:01:00]} f5 {[%emt 0:00:30]} 16. c5 {[%emt 0:00:00]} Ndf6 {[%emt 0:00:30]} 17. c6 {[%emt 0:00:00]} Bc8 {[%emt 0:00:30]} 18. Nd2 {[%emt 0:01:30]} Nxd2 {[%emt 0:00:00]} 19. Qxd2 {[%emt 0:00:30]} e5 {[%emt 0:01:00]} 20. Bc4+ {[%emt 0:00:00]} Kh8 {[%emt 0:00:00]} 21. f3 {[%emt 0:01:00]} Be6 {[%emt 0:01:00]} 22. Bxe6 {[%emt 0:00:00]} Rxe6 {[%emt 0:00:30]} 23. e4 {[%emt 0:01:00]} Nh7 {[%emt 0:00:30]} 24. dxe5 {[%emt 0:00:00]} Rxe5 {[%emt 0:00:00]} 25. Bg3 {[%emt 0:00:00]} Re7 {[%emt 0:00:00]} 26. exf5 {[%emt 0:00:00]} Qxf5 {[%emt 0:00:00]} 27. Rfe1 {[%emt 0:00:00]} Rae8 28. Bh4 {[%emt 0:00:00]} Re6 29. Rxe6 {[%emt 0:00:00]} Rxe6 30. Re1 {[%emt 0:00:00]} Nf8 31. h3 {[%emt 0:00:00]} Kg8 32. a4 {[%emt 0:00:00]} a6 33. Rxe6 {[%emt 0:00:00]} Nxe6 34. Qe2 {[%emt 0:00:00]} b5 35. axb5 {[%emt 0:00:00]} axb5 36. Bg3 {[%emt 0:00:00]} Kf7 37. Kh2 {[%emt 0:00:00]} Qd5 38. Qc2 {[%emt 0:00:00]} Nd4 39. Qh7 {[%emt 0:00:00]} Nxc6 40. Bf4 {[%emt 0:00:00]} Qe6 41. Bd2 {[%emt 0:07:11]} Ne7 42. Bc3 {[%emt 0:00:30]} Qg6 43. Qh8 {[%emt 0:00:30]} Ng8 44. Bd4 {[%emt 0:00:30]} Qg5 45. Bc3 {[%emt 0:00:30]} c5 46. g3 {[%emt 0:00:30]} Qg6 0-1

[Event "36th Belgrade Trophy 2023"]
[Site "Belgrade"]
[Date "2023.12.02"]
[Round "8.13"]
[White "Savic, Nemanja"]
[Black "Eric, Jovana"]
[Result "1/2-1/2"]
[ECO "B51"]
[WhiteElo "2136"]
[BlackElo "2112"]
[Annotator "NA"]
[PlyCount "144"]
[EventDate "2023.10.23"]
[EventType "swiss"]
[EventCountry "SRB"]
[SourceTitle "playchess.com"]
[Source "ChessBase"]
[SourceQuality "1"]
[TimeControl "40/5400+30:900+30"]

1. e4 {[%emt 0:00:01]} c5 {[%emt 0:00:06]} 2. Nf3 {[%emt 0:00:40]} d6 {[%emt 0:00:14]} 3. Bb5+ {[%emt 0:00:30]} Nd7 {[%emt 0:00:18]} 4. a4 {[%emt 0:01:08]} Ngf6 {[%emt 0:00:59]} 5. Nc3 {[%emt 0:00:44]} e6 {[%emt 0:00:39]} 6. O-O {[%emt 0:01:15]} a6 {[%emt 0:00:44]} 7. Be2 {[%emt 0:00:10]} Be7 {[%emt 0:00:14]} 8. d4 {[%emt 0:00:35]} cxd4 {[%emt 0:00:44]} 9. Qxd4 {[%emt 0:00:44]} O-O {[%emt 0:00:47]} 10. Rd1 {[%emt 0:10:00]} e5 {[%emt 0:04:29]} 11. Qe3 {[%emt 0:05:49]} Qc7 {[%emt 0:03:14]} 12. Nd2 {[%emt 0:03:14]} Nc5 {[%emt 0:02:33]} 13. Nc4 {[%emt 0:16:55]} Be6 {[%emt 0:07:20]} 14. b3 {[%emt 0:14:45]} h6 {[%emt 0:07:48]} 15. a5 {[%emt 0:08:32]} Rad8 {[%emt 0:09:53]} 16. Nb6 {[%emt 0:04:58]} Ncd7 {[%emt 0:01:40]} 17. Nc4 {[%emt 0:02:36]} Qc6 {[%emt 0:10:46]} 18. Ba3 {[%emt 0:05:06]} Ne8 {[%emt 0:08:31]} 19. g3 {[%emt 0:04:03]} Bg5 {[%emt 0:09:50]} 20. f4 {[%emt 0:03:18]} exf4 {[%emt 0:00:25]} 21. gxf4 {[%emt 0:00:04]} Bf6 {[%emt 0:02:16]} 22. Nd5 {[%emt 0:00:35]} Bxd5 {[%emt 0:01:18]} 23. exd5 {[%emt 0:00:04]} Qc7 {[%emt 0:02:22]} 24. Rab1 {[%emt 0:00:56]} Rb8 {[%emt 0:03:48]} 25. Bb4 {[%emt 0:04:52]} Bd8 {[%emt 0:06:14]} 26. Kh1 {[%emt 0:03:38]} Ndf6 {[%emt 0:00:14]} 27. Bf3 {[%emt 0:00:54]} Qd7 {[%emt 0:00:26]} 28. Rd2 {[%emt 0:02:41]} Bc7 {[%emt 0:04:43]} 29. Rg1 {[%emt 0:00:44]} Qf5 {[%emt 0:00:49]} 30. Qd4 {[%emt 0:01:05]} Kh8 {[%emt 0:03:19]} 31. Rdg2 {[%emt 0:01:04]} Rg8 {[%emt 0:02:26]} 32. Bc3 {[%emt 0:00:37]} Bd8 {[%emt 0:00:41]} 33. Bb4 {[%emt 0:01:35]} Bc7 {[%emt 0:00:43]} 34. Ba3 {[%emt 0:00:12]} Qh3 {[%emt 0:01:56]} 35. Rg3 {[%emt 0:00:26]} Qd7 {[%emt 0:00:38]} 36. Bb2 {[%emt 0:01:00]} Bd8 {[%emt 0:00:15]} 37. Qd3 {[%emt 0:01:45]} Qb5 {[%emt 0:01:28]} 38. Qf5 {[%emt 0:01:13]} Qc5 {[%emt 0:03:00]} 39. Qh3 {[%emt 0:00:38]} Kh7 {[%emt 0:00:42]} 40. Qf5+ {[%emt 0:00:00]} g6 {[%emt 0:00:00]} 41. Qd3 {[%emt 0:07:28]} Qc8 {[%emt 0:05:52]} 42. h4 {[%emt 0:02:27]} h5 {[%emt 0:12:06]} 43. Ne3 {[%emt 0:07:59]} Bxa5 {[%emt 0:00:00]} 44. f5 {[%emt 0:00:00]} Bb6 {[%emt 0:01:00]} 45. fxg6+ {[%emt 0:00:00]} fxg6 {[%emt 0:00:00]} 46. Kh2 {[%emt 0:00:00]} Bxe3 {[%emt 0:00:00]} 47. Qxe3 {[%emt 0:00:00]} Qf5 {[%emt 0:00:00]} 48. Bc1 {[%emt 0:00:00]} Rg7 {[%emt 0:00:00]} 49. Qh6+ {[%emt 0:00:00]} Kg8 {[%emt 0:00:00]} 50. Rxg6 {[%emt 0:00:00]} Rxg6 {[%emt 0:01:12]} 51. Qxg6+ {[%emt 0:00:28]} Qxg6 {[%emt 0:00:05]} 52. Rxg6+ {[%emt 0:00:05]} Kf7 {[%emt 0:00:04]} 53. Rh6 {[%emt 0:00:42]} Ng4+ {[%emt 0:01:13]} 54. Bxg4 {[%emt 0:01:51]} hxg4 {[%emt 0:00:06]} 55. Kg3 {[%emt 0:01:49]} Rc8 {[%emt 0:00:47]} 56. Rh7+ {[%emt 0:00:24]} Kg6 {[%emt 0:00:22]} 57. Rxb7 {[%emt 0:01:02]} Rc3+ {[%emt 0:00:40]} 58. Kxg4 {[%emt 0:00:29]} Nf6+ {[%emt 0:00:04]} 59. Kf4 {[%emt 0:00:05]} Nxd5+ {[%emt 0:00:11]} 60. Ke4 {[%emt 0:00:30]} Nf6+ {[%emt 0:00:11]} 61. Kd4 {[%emt 0:00:22]} Rxc2 {[%emt 0:00:09]} 62. Bg5 {[%emt 0:00:22]} Nh7 {[%emt 0:02:43]} 63. Bf4 {[%emt 0:01:04]} Nf8 {[%emt 0:00:47]} 64. Bxd6 {[%emt 0:00:41]} Rd2+ {[%emt 0:00:05]} 65. Ke5 {[%emt 0:00:15]} Re2+ {[%emt 0:00:14]} 66. Kd5 {[%emt 0:00:12]} Rd2+ {[%emt 0:00:12]} 67. Kc6 {[%emt 0:00:15]} Ne6 {[%emt 0:00:04]} 68. Rb6 {[%emt 0:00:37]} Nd4+ {[%emt 0:01:49]} 69. Kb7 {[%emt 0:00:12]} Kh5 {[%emt 0:00:22]} 70. Be7 {[%emt 0:00:53]} Nxb3 {[%emt 0:00:18]} 71. Rxb3 {[%emt 0:01:00]} Rd7+ {[%emt 0:00:05]} 72. Kxa6 {[%emt 0:00:05]} Rxe7 {[%emt 0:00:03]} 1/2-1/2

[Event "36th Belgrade Trophy 2023"]
[Site "Belgrade"]
[Date "2023.12.02"]
[Round "8.14"]
[White "Popchev, Milko"]
[Black "Zmijanac, Dusko"]
[Result "1-0"]
[ECO "B02"]
[WhiteElo "2244"]
[BlackElo "1938"]
[Annotator "RC"]
[PlyCount "95"]
[EventDate "2023.10.23"]
[EventType "swiss"]
[EventCountry "SRB"]
[SourceTitle "playchess.com"]
[Source "ChessBase"]
[SourceQuality "1"]
[TimeControl "40/5400+30:900+30"]

1. e4 Nf6 2. d3 d5 3. e5 Nfd7 4. f4 c5 5. g3 e6 6. Bg2 Nc6 7. c4 Nb6 8. b3 f6 9. Nf3 dxc4 10. dxc4 Qxd1+ 11. Kxd1 Be7 12. Bb2 O-O 13. Na3 a6 14. Nc2 Nd7 15. Ke2 Rb8 16. Rad1 b5 17. Bh3 Nb6 18. Ne3 bxc4 19. bxc4 Na5 20. Nd2 f5 21. Rc1 Rd8 22. Rhd1 Bd7 23. Bc3 Nc6 24. Nb3 Na4 25. Bg2 Be8 26. Ba1 Nb4 27. Rxd8 Rxd8 28. a3 Rd3 29. Rb1 Rxe3+ 30. Kxe3 Nc2+ 31. Kd3 Nxa3 32. Rc1 Nxc4 33. Rxc4 Bb5 34. Nd2 Bd8 35. Kc2 Ba5 36. Bf1 Kf7 37. Nb3 Be1 38. Rxa4 Bxa4 39. Bxa6 Bf2 40. Bc4 Bg1 41. h3 Bxb3+ 42. Kxb3 Bh2 43. g4 g6 44. gxf5 gxf5 45. Ka4 Bxf4 46. Kb5 Be3 47. Kc6 Ke7 48. Bb2 1-0

[Event "36th Belgrade Trophy 2023"]
[Site "Belgrade"]
[Date "2023.12.02"]
[Round "8.15"]
[White "Ivanovic, Nikola"]
[Black "Djokic, Mihailo"]
[Result "0-1"]
[ECO "E62"]
[WhiteElo "1980"]
[BlackElo "2170"]
[Annotator "ChessBase"]
[PlyCount "103"]
[EventDate "2023.10.23"]
[EventType "swiss"]
[EventCountry "SRB"]
[SourceTitle "playchess.com"]
[Source "ChessBase"]
[SourceQuality "1"]
[TimeControl "40/5400+30:900+30"]

1. d4 {[%emt 0:00:05]} Nf6 {[%emt 0:00:06]} 2. c4 {[%emt 0:00:17]} g6 {[%emt 0:00:03]} 3. Nc3 {[%emt 0:00:10]} Bg7 {[%emt 0:00:04]} 4. Nf3 {[%emt 0:00:28]} O-O {[%emt 0:00:07]} 5. g3 {[%emt 0:00:11]} d6 {[%emt 0:00:06]} 6. Bg2 {[%emt 0:00:11]} Nc6 {[%emt 0:00:04]} 7. d5 {[%emt 0:01:14]} Na5 {[%emt 0:00:05]} 8. b3 {[%emt 0:00:30]} c5 {[%emt 0:01:47]} 9. dxc6 {[%emt 0:05:21]} Ne4 {[%emt 0:04:46]} 10. Nxe4 {[%emt 0:17:32]} Bxa1 {[%emt 0:00:12]} 11. Bh6 {[%emt 0:09:10]} Bg7 {[%emt 0:03:00]} 12. Bxg7 {[%emt 0:00:19]} Kxg7 {[%emt 0:00:02]} 13. h4 {[%emt 0:00:44]} Nxc6 {[%emt 0:00:22]} 14. h5 {[%emt 0:00:42]} Qa5+ {[%emt 0:00:04]} 15. Kf1 {[%emt 0:00:20]} Bf5 {[%emt 0:03:11]} 16. Qa1+ {[%emt 0:03:19]} f6 {[%emt 0:02:34]} 17. Nh4 {[%emt 0:03:50]} Bg4 {[%emt 0:02:29]} 18. Qc1 {[%emt 0:07:10]} g5 {[%emt 0:06:14]} 19. h6+ {[%emt 0:02:41]} Kh8 {[%emt 0:00:14]} 20. Nf3 {[%emt 0:02:11]} Qxa2 {[%emt 0:00:08]} 21. Nfd2 {[%emt 0:04:04]} Nd4 {[%emt 0:00:26]} 22. f3 {[%emt 0:01:11]} Bf5 {[%emt 0:01:57]} 23. Qc3 {[%emt 0:01:55]} Bxe4 {[%emt 0:01:32]} 24. Qxd4 {[%emt 0:00:25]} Bc6 {[%emt 0:00:20]} 25. Bh3 {[%emt 0:01:33]} Qa5 {[%emt 0:00:23]} 26. e4 {[%emt 0:37:57]} Qe5 {[%emt 0:00:19]} 27. Qxe5 {[%emt 0:00:00]} dxe5 {[%emt 0:00:47]} 28. Ke2 {[%emt 0:00:00]} Rfd8 {[%emt 0:00:30]} 29. Be6 {[%emt 0:00:00]} b6 {[%emt 0:04:20]} 30. Ra1 {[%emt 0:00:00]} Rd6 {[%emt 0:00:24]} 31. Bd5 {[%emt 0:00:00]} e6 {[%emt 0:00:07]} 32. Bxc6 {[%emt 0:00:00]} Rxc6 {[%emt 0:00:07]} 33. Ra6 {[%emt 0:00:00]} Kg8 {[%emt 0:00:11]} 34. b4 {[%emt 0:00:00]} Rc7 {[%emt 0:00:17]} 35. b5 {[%emt 0:00:00]} Kf7 {[%emt 0:00:13]} 36. Ra4 {[%emt 0:00:00]} Kg6 {[%emt 0:00:14]} 37. Ra3 {[%emt 0:00:00]} Rd8 {[%emt 0:00:19]} 38. Rc3 {[%emt 0:00:00]} f5 {[%emt 0:00:15]} 39. exf5+ {[%emt 0:00:00]} exf5 {[%emt 0:00:05]} 40. g4 {[%emt 0:00:00]} fxg4 {[%emt 0:00:00]} 41. fxg4 {[%emt 0:00:00]} Rd4 {[%emt 0:00:21]} 42. Nf3 {[%emt 0:00:00]} Re4+ {[%emt 0:01:40]} 43. Kd3 {[%emt 0:00:00]} Rf4 {[%emt 0:00:04]} 44. Nxe5+ {[%emt 0:00:00]} Kxh6 {[%emt 0:00:04]} 45. Rc1 {[%emt 0:00:00]} Re7 {[%emt 0:00:44]} 46. Nc6 {[%emt 0:00:00]} Rd7+ {[%emt 0:00:19]} 47. Ke3 {[%emt 0:00:00]} Rxg4 {[%emt 0:00:14]} 48. c5 {[%emt 0:00:00]} bxc5 {[%emt 0:00:48]} 49. Rxc5 {[%emt 0:00:00]} Ra4 {[%emt 0:00:42]} 50. Ne5 {[%emt 0:00:00]} Re7 {[%emt 0:00:05]} 51. Kf3 {[%emt 0:00:00]} Rxe5 {[%emt 0:00:07]} 52. Rxe5 {[%emt 0:00:00]} 0-1

[Event "36th Belgrade Trophy 2023"]
[Site "Belgrade"]
[Date "2023.12.03"]
[Round "9.1"]
[White "Martic, Ivan"]
[Black "Atalik, Suat"]
[Result "1/2-1/2"]
[ECO "C96"]
[WhiteElo "2292"]
[BlackElo "2427"]
[Annotator "RC"]
[PlyCount "28"]
[EventDate "2023.10.23"]
[EventType "swiss"]
[EventCountry "SRB"]
[SourceTitle "playchess.com"]
[Source "ChessBase"]
[SourceQuality "1"]
[TimeControl "40/5400+30:900+30"]

1. e4 {[%emt 0:00:04]} e5 {[%emt 0:00:05]} 2. Nf3 {[%emt 0:00:07]} Nc6 {[%emt 0:00:06]} 3. Bc4 {[%emt 0:00:12]} Nf6 {[%emt 0:00:07]} 4. d3 {[%emt 0:00:06]} Be7 {[%emt 0:00:04]} 5. O-O {[%emt 0:00:09]} O-O {[%emt 0:00:05]} 6. Re1 {[%emt 0:00:10]} d6 {[%emt 0:00:06]} 7. c3 {[%emt 0:00:07]} Na5 {[%emt 0:00:06]} 8. Bb5 {[%emt 0:00:06]} a6 {[%emt 0:00:04]} 9. Ba4 {[%emt 0:00:06]} b5 {[%emt 0:00:04]} 10. Bc2 {[%emt 0:00:07]} c5 {[%emt 0:00:03]} 11. h3 {[%emt 0:00:15]} Nc6 {[%emt 0:00:06]} 12. d4 {[%emt 0:00:20]} Nd7 {[%emt 0:00:26]} 13. d5 {[%emt 0:00:11]} Na5 {[%emt 0:00:04]} 14. b3 {[%emt 0:00:14]} Nb6 {[%emt 0:00:05]} 1/2-1/2

[Event "36th Belgrade Trophy 2023"]
[Site "Belgrade"]
[Date "2023.12.03"]
[Round "9.3"]
[White "Besedes, Danilo"]
[Black "Blagojevic, Dragisa"]
[Result "0-1"]
[ECO "D02"]
[WhiteElo "2277"]
[BlackElo "2438"]
[Annotator "ChessBase"]
[PlyCount "162"]
[EventDate "2023.10.23"]
[EventType "swiss"]
[EventCountry "SRB"]
[SourceTitle "playchess.com"]
[Source "ChessBase"]
[SourceQuality "1"]
[TimeControl "40/5400+30:900+30"]

1. d4 {[%emt 0:10:34]} d5 {[%emt 0:00:18]} 2. Nf3 {[%emt 0:00:32]} Nf6 {[%emt 0:00:07]} 3. g3 {[%emt 0:00:07]} c5 {[%emt 0:00:31]} 4. Bg2 {[%emt 0:03:03]} cxd4 {[%emt 0:00:06]} 5. O-O {[%emt 0:01:22]} h6 {[%emt 0:00:57]} 6. Nxd4 {[%emt 0:01:46]} e5 {[%emt 0:00:45]} 7. Nb3 {[%emt 0:00:02]} Nc6 {[%emt 0:00:52]} 8. Nc3 {[%emt 0:00:26]} Be6 {[%emt 1:30:54]} 9. e4 {[%emt 0:07:30]} d4 {[%emt 0:00:00]} 10. Nb1 {[%emt 1:10:08]} a5 {[%emt 0:00:00]} 11. c3 {[%emt 0:00:00]} a4 {[%emt 0:00:00]} 12. N3d2 {[%emt 0:01:00]} Be7 {[%emt 0:00:00]} 13. cxd4 {[%emt 0:00:30]} exd4 {[%emt 0:00:00]} 14. h3 {[%emt 0:00:30]} Nb4 {[%emt 0:03:00]} 15. Na3 {[%emt 0:00:00]} Nxa2 {[%emt 0:00:30]} 16. e5 {[%emt 0:01:00]} Nd7 {[%emt 0:00:30]} 17. Ndc4 {[%emt 0:00:30]} Nxc1 {[%emt 0:00:30]} 18. Rxc1 {[%emt 0:00:30]} O-O {[%emt 0:00:30]} 19. Qxd4 {[%emt 0:00:30]} Nc5 {[%emt 0:00:30]} 20. Rcd1 {[%emt 0:00:30]} Qxd4 {[%emt 0:00:30]} 21. Rxd4 {[%emt 0:00:30]} f6 {[%emt 0:00:30]} 22. Re1 {[%emt 0:00:30]} Rad8 {[%emt 0:00:30]} 23. Rxd8 {[%emt 0:00:30]} Rxd8 24. Re2 b5 25. Na5 b4 26. Nc2 b3 27. Ne3 Bf8 28. exf6 gxf6 29. Nc6 Rd6 {[%emt 0:00:00]} 30. Nb4 {[%emt 0:03:30]} Nd3 {[%emt 0:00:00]} 31. Nbd5 {[%emt 0:00:30]} a3 {[%emt 0:04:30]} 32. bxa3 {[%emt 0:00:30]} b2 {[%emt 0:00:30]} 33. Nc3 {[%emt 0:00:00]} Rb6 {[%emt 0:00:00]} 34. Nf1 {[%emt 0:00:00]} Bf7 {[%emt 0:00:00]} 35. Nb1 {[%emt 0:00:00]} Rb8 {[%emt 0:00:00]} 36. Be4 {[%emt 0:00:00]} Ne5 {[%emt 0:00:04]} 37. Ne3 {[%emt 0:02:30]} Ba2 {[%emt 0:00:42]} 38. Bd5+ {[%emt 0:00:00]} Bxd5 {[%emt 0:00:08]} 39. Nxd5 {[%emt 0:00:00]} Nc4 {[%emt 0:00:24]} 40. a4 {[%emt 0:00:00]} Na3 {[%emt 0:02:42]} 41. Ndc3 {[%emt 0:17:00]} Kf7 {[%emt 0:15:30]} 42. a5 {[%emt 0:00:30]} f5 {[%emt 0:00:30]} 43. Kf1 {[%emt 0:00:30]} Nxb1 {[%emt 0:00:00]} 44. Nxb1 {[%emt 0:00:00]} Bg7 {[%emt 0:00:00]} 45. Rc2 {[%emt 0:01:00]} Rb5 {[%emt 0:00:00]} 46. Rc7+ {[%emt 0:00:00]} Kg6 {[%emt 0:02:00]} 47. a6 {[%emt 0:01:00]} Ra5 {[%emt 0:00:30]} 48. a7 {[%emt 0:00:30]} Bd4 {[%emt 0:00:30]} 49. Rc6+ {[%emt 0:00:30]} Bf6 {[%emt 0:00:00]} 50. Rc7 {[%emt 0:00:30]} Bd4 {[%emt 0:01:00]} 51. Rc6+ {[%emt 0:00:30]} Kf7 {[%emt 0:00:30]} 52. Rc4 {[%emt 0:00:00]} Bf6 {[%emt 0:00:00]} 53. Rc7+ {[%emt 0:00:00]} Ke6 {[%emt 0:00:00]} 54. Ke2 {[%emt 0:00:00]} Bd4 {[%emt 0:01:30]} 55. Kd3 {[%emt 0:02:00]} Bxf2 {[%emt 0:00:00]} 56. Rc6+ {[%emt 0:00:00]} Kf7 {[%emt 0:00:00]} 57. Rc7+ {[%emt 0:00:00]} Ke6 58. Rc6+ Ke5 {[%emt 0:02:00]} 59. Rxh6 {[%emt 0:02:00]} Rxa7 {[%emt 0:00:30]} 60. g4 {[%emt 0:00:30]} Rd7+ {[%emt 0:00:30]} 61. Ke2 {[%emt 0:00:00]} Bd4 {[%emt 0:00:00]} 62. Rh5 {[%emt 0:01:00]} Rc7 {[%emt 0:01:00]} 63. Rxf5+ {[%emt 0:00:00]} Ke6 {[%emt 0:00:30]} 64. Rf1 {[%emt 0:00:00]} Rc2+ {[%emt 0:00:30]} 65. Kd3 {[%emt 0:00:14]} Rc1 {[%emt 0:00:30]} 66. Ke2 {[%emt 0:01:46]} Bf6 {[%emt 0:00:30]} 67. Rd1 {[%emt 0:00:00]} Bg5 {[%emt 0:00:30]} 68. Na3 {[%emt 0:01:00]} Be7 {[%emt 0:00:30]} 69. Nb1 {[%emt 0:00:30]} Ke5 {[%emt 0:00:30]} 70. Rf1 {[%emt 0:00:30]} Bg5 {[%emt 0:00:30]} 71. Rf5+ {[%emt 0:00:00]} Ke6 {[%emt 0:00:30]} 72. Rf1 {[%emt 0:00:00]} Ke5 {[%emt 0:00:00]} 73. Rf5+ {[%emt 0:01:30]} Kd4 {[%emt 0:01:00]} 74. Rxg5 {[%emt 0:00:30]} Rxb1 {[%emt 0:00:30]} 75. Rb5 {[%emt 0:00:30]} Rh1 {[%emt 0:00:30]} 76. Kf3 {[%emt 0:00:30]} b1=Q {[%emt 0:00:30]} 77. Rxb1 {[%emt 0:00:30]} Rxb1 {[%emt 0:00:30]} 78. Kf4 {[%emt 0:00:30]} Kd5 {[%emt 0:00:00]} 79. Kf5 Kd6 {[%emt 0:01:00]} 80. Kf6 {[%emt 0:01:00]} Rh1 {[%emt 0:00:30]} 81. g5 {[%emt 0:00:00]} Rxh3 {[%emt 0:00:30]} 0-1

[Event "36th Belgrade Trophy 2023"]
[Site "Belgrade"]
[Date "2023.12.03"]
[Round "9.5"]
[White "Nenezic, Marko"]
[Black "Mezentsev, Ivan"]
[Result "1-0"]
[ECO "D02"]
[WhiteElo "2499"]
[BlackElo "2362"]
[Annotator "ChessBase"]
[PlyCount "77"]
[EventDate "2023.10.23"]
[EventType "swiss"]
[EventCountry "SRB"]
[SourceTitle "playchess.com"]
[Source "ChessBase"]
[SourceQuality "1"]
[TimeControl "40/5400+30:900+30"]

1. Nf3 {[%emt 0:00:27]} d5 {[%emt 0:00:45]} 2. g3 {[%emt 0:01:06]} Nc6 {[%emt 0:05:04]} 3. d4 {[%emt 0:00:28]} Bg4 {[%emt 0:00:17]} 4. Bg2 {[%emt 0:00:19]} Qd7 {[%emt 1:26:24]} 5. c4 {[%emt 0:01:44]} e6 {[%emt 0:00:30]} 6. Nc3 {[%emt 1:29:26]} O-O-O {[%emt 0:00:30]} 7. h3 {[%emt 0:00:30]} Bh5 {[%emt 0:00:30]} 8. O-O {[%emt 0:00:30]} f6 {[%emt 0:00:30]} 9. cxd5 {[%emt 0:00:00]} exd5 {[%emt 0:00:00]} 10. Qa4 {[%emt 0:01:00]} Bf7 {[%emt 0:01:00]} 11. Bd2 {[%emt 0:00:30]} Be6 {[%emt 0:00:30]} 12. b4 {[%emt 0:00:00]} Kb8 {[%emt 0:00:00]} 13. b5 {[%emt 0:01:00]} Nce7 {[%emt 0:01:00]} 14. b6 {[%emt 0:00:30]} Qxa4 {[%emt 0:00:00]} 15. bxc7+ {[%emt 0:00:00]} Kxc7 {[%emt 0:00:00]} 16. Nxa4 {[%emt 0:01:00]} Nc6 {[%emt 0:01:30]} 17. Rfc1 {[%emt 0:00:30]} Bd6 {[%emt 0:00:30]} 18. Rab1 {[%emt 0:00:30]} Nge7 {[%emt 0:00:00]} 19. Nc3 {[%emt 0:00:30]} Kc8 {[%emt 0:01:00]} 20. Nb5 {[%emt 0:00:00]} Bb8 {[%emt 0:00:30]} 21. a4 {[%emt 0:01:00]} Nf5 {[%emt 0:00:30]} 22. e3 {[%emt 0:00:30]} a6 23. Ba5 Rd7 {[%emt 0:00:00]} 24. Bb6 Nd6 25. Nd2 Bf5 26. Rb2 {[%emt 0:02:00]} Bd3 {[%emt 0:02:30]} 27. Nxd6+ {[%emt 0:00:30]} Bxd6 {[%emt 0:00:30]} 28. Rb3 {[%emt 0:00:30]} Bf5 {[%emt 0:00:30]} 29. Bxd5 {[%emt 0:00:00]} Bxh3 {[%emt 0:00:00]} 30. Bxc6 {[%emt 0:00:00]} bxc6 {[%emt 0:00:00]} 31. Rxc6+ {[%emt 0:00:00]} Kb7 {[%emt 0:00:00]} 32. d5 {[%emt 0:00:00]} Ka8 {[%emt 0:02:00]} 33. Bd4 {[%emt 0:02:30]} Bb8 {[%emt 0:00:00]} 34. Rxa6+ {[%emt 0:00:00]} Ba7 {[%emt 0:00:00]} 35. Nc4 {[%emt 0:01:00]} Rc7 {[%emt 0:01:30]} 36. d6 {[%emt 0:00:30]} Bc8 {[%emt 0:00:30]} 37. Nb6+ {[%emt 0:00:00]} Kb7 {[%emt 0:00:00]} 38. Rxa7+ {[%emt 0:00:00]} Kxa7 {[%emt 0:01:00]} 39. Nxc8+ {[%emt 0:01:30]} 1-0